bitfinex/quotes_SOLUSD_20251019
["timestamp","ask_amount","ask_price","bid_price","bid_amount"]
[1760850622212,3.34043426,187.28,187.26,6.0007092]
[1760850622444,3.34043426,187.28,187.26,5.3407092]
[1760850622595,3.34043426,187.27,187.26,5.3407092]
[1760850622790,3.34043426,187.27,187.25,0.66]
[1760850623212,3.34043426,187.27,187.25,6.20098017]
[1760850624217,102.1,187.31,187.26,0.66]
[1760850624509,102.1,187.31,187.26,6.86098017]
[1760850624510,3.34043426,187.3,187.26,6.86098017]
[1760850624813,105.44043426,187.31,187.27,0.66]
[1760850625198,105.44043426,187.31,187.27,7.52098017]
[1760850625402,105.44043426,187.31,187.28,0.66]
[1760850625824,105.44043426,187.31,187.27,6.86098017]
[1760850625825,105.44043426,187.31,187.29,0.66]
[1760850626900,102.1,187.31,187.3,0.66]
[1760850628500,102.1,187.31,187.27,3.34043426]
[1760850628815,102.1,187.31,187.28,9.34081099]
[1760850629200,4.00043426,187.3,187.26,0.66]
[1760850629516,3.34043426,187.29,187.27,9.34081099]
[1760850630013,3.34043426,187.29,187.26,10.00081099]
[1760850630620,3.34043426,187.28,187.25,0.66]
[1760850630812,3.34043426,187.28,187.26,0.66]
[1760850631115,3.34043426,187.28,187.25,0.66]
[1760850631612,3.34043426,187.26,187.23,0.2]
[1760850631798,3.34043426,187.26,187.23,10.86081099]
[1760850632196,3.34043426,187.26,187.23,0.2]
[1760850632522,3.34043426,187.25,187.23,0.2]
[1760850633324,3.34043426,187.24,187.23,0.2]
[1760850633817,3.34043426,187.25,187.23,0.86]
[1760850634017,3.34043426,187.25,187.23,0.2]
[1760850636321,105.44043426,187.25,187.23,0.2]
[1760850638327,3.34043426,187.24,187.23,0.2]
[1760850639827,105.44043426,187.25,187.23,0.2]
[1760850642327,102.1,187.3,187.24,4.00043426]
[1760850642625,102.1,187.29,187.25,4.00043426]
[1760850642806,102.1,187.29,187.26,0.66]
[1760850643004,102.1,187.29,187.27,3.34043426]
[1760850643320,3.34043426,187.34,187.28,4.00043426]
[1760850643502,3.34043426,187.34,187.28,3.34043426]
[1760850643701,3.34043426,187.34,187.29,0.72]
[1760850643901,3.34043426,187.34,187.29,16.11531916]
[1760850644102,3.34043426,187.35,187.3,0.72]
[1760850644522,3.34043426,187.35,187.31,15.39531916]
[1760850644715,4.06043426,187.35,187.31,16.11531916]
[1760850644902,3.34043426,187.35,187.31,15.39531916]
[1760850645229,3.34043426,187.35,187.32,0.72]
[1760850645826,3.34043426,187.34,187.31,15.39531916]
[1760850646029,3.34043426,187.33,187.31,16.11531916]
[1760850646524,3.34043426,187.33,187.31,15.39531916]
[1760850647126,4.06043426,187.33,187.31,15.39531916]
[1760850647312,4.06043426,187.33,187.29,0.72]
[1760850647506,3.34043426,187.33,187.3,16.11531916]
[1760850648933,3.34043426,187.33,187.31,0.72]
[1760850649128,3.34043426,187.34,187.31,16.77608927]
[1760850649526,3.34043426,187.34,187.31,0.72]
[1760850650030,3.34043426,187.34,187.29,16.05608927]
[1760850650231,3.34043426,187.34,187.32,0.72]
[1760850650636,3.34043426,187.34,187.31,0.72]
[1760850654233,3.34043426,187.33,187.31,0.72]
[1760850655135,4.06043426,187.33,187.29,0.72]
[1760850655434,3.34043426,187.32,187.29,0.72]
[1760850657711,4.06043426,187.32,187.27,16.77608927]
[1760850657911,4.06043426,187.32,187.28,0.72]
[1760850658126,3.34043426,187.32,187.29,0.72]
[1760850659029,3.34043426,187.33,187.3,0.72]
[1760850659230,105.44043426,187.34,187.31,0.72]
[1760850659530,102.1,187.33,187.31,0.72]
[1760850666516,102.1,187.33,187.32,0.72]
[1760850666722,102.1,187.33,187.31,0.72]
[1760850668244,106.09043426,187.33,187.29,0.67]
[1760850669138,105.44043426,187.33,187.28,16.05608927]
[1760850669342,3.99043426,187.32,187.27,0.67]
[1760850669543,0.65,187.31,187.27,16.72608927]
[1760850669736,3.99043426,187.32,187.28,0.67]
[1760850670443,3.99043426,187.32,187.29,0.67]
[1760850671326,3.99043426,187.32,187.28,0.67]
[1760850672448,102.1,187.33,187.26,24.73832112]
[1760850672745,106.09043426,187.33,187.29,0.67]
[1760850672946,0.65,187.32,187.29,0.67]
[1760850673133,3.99043426,187.32,187.29,0.67]
[1760850673944,3.99043426,187.32,187.28,0.67]
[1760850675525,3.99043426,187.32,187.29,0.67]
[1760850675849,105.44043426,187.33,187.29,0.67]
[1760850676047,106.09043426,187.33,187.29,0.67]
[1760850676639,106.09043426,187.33,187.3,0.67]
[1760850677449,0.65,187.32,187.28,0.67]
[1760850677857,0.65,187.32,187.27,21.39757993]
[1760850678032,102.1,187.33,187.29,0.67]
[1760850678233,0.65,187.32,187.29,0.67]
[1760850679038,105.44043426,187.33,187.29,0.67]
[1760850679350,106.09043426,187.33,187.29,0.67]
[1760850679758,102.1,187.33,187.3,0.67]
[1760850680158,102.1,187.33,187.31,0.67]
[1760850680339,102.1,187.33,187.32,0.67]
[1760850682860,102.1,187.33,187.3,0.67]
[1760850684546,102.1,187.33,187.31,0.67]
[1760850684739,102.1,187.33,187.29,12.02008349]
[1760850684939,102.1,187.33,187.3,0.67]
[1760850685153,102.1,187.33,187.31,0.67]
[1760850686948,102.1,187.33,187.3,5.33924867]
[1760850687155,102.1,187.33,187.31,0.67]
[1760850687860,102.1,187.33,187.3,11.34825509]
[1760850690742,102.1,187.33,187.3,14.01868935]
[1760850691041,102.1,187.33,187.31,0.67]
[1760850691662,102.1,187.33,187.32,0.67]
[1760850694457,102.1,187.33,187.32,9.34889251]
[1760850694656,105.44043426,187.39,187.32,18.02802364]
[1760850694856,105.44043426,187.39,187.34,3.34043426]
[1760850695061,0.65,187.38,187.34,4.01043426]
[1760850695260,105.44043426,187.39,187.35,0.67]
[1760850695261,102.1,187.39,187.35,0.67]
[1760850695444,102.1,187.39,187.36,0.67]
[1760850696455,102.75,187.39,187.35,5.3375728]
[1760850696659,106.09043426,187.39,187.35,0.67]
[1760850696946,3.34043426,187.38,187.35,0.67]
[1760850697851,102.75,187.39,187.35,0.67]
[1760850697852,106.09043426,187.39,187.35,0.67]
[1760850699470,3.34043426,187.37,187.32,6.00821068]
[1760850699765,3.99043426,187.36,187.32,6.00821068]
[1760850700272,3.99043426,187.36,187.33,0.67]
[1760850700567,3.99043426,187.37,187.33,0.67]
[1760850700973,3.99043426,187.37,187.33,16.7235117]
[1760850702070,3.34043426,187.38,187.34,0.67]
[1760850702262,3.99043426,187.38,187.34,16.72179378]
[1760850702468,0.65,187.38,187.34,16.72179378]
[1760850702772,102.1,187.39,187.35,0.67]
[1760850702946,102.75,187.39,187.35,16.72093496]
[1760850703350,105.44043426,187.39,187.35,16.05093496]
[1760850703550,3.99043426,187.38,187.33,6.00796734]
[1760850703757,0.68,187.37,187.34,16.05179378]
[1760850703957,0.68,187.37,187.34,16.75179378]
[1760850704158,3.34043426,187.38,187.34,16.75179378]
[1760850704363,4.02043426,187.38,187.34,16.75179378]
[1760850706168,4.02043426,187.37,187.34,16.05179378]
[1760850706355,4.02043426,187.36,187.31,23.58]
[1760850706672,3.34043426,187.35,187.31,39.6343708]
[1760850706978,4.02043426,187.36,187.32,0.7]
[1760850707171,4.02043426,187.36,187.32,16.7543708]
[1760850709778,4.02043426,187.36,187.32,0.7]
[1760850710080,4.02043426,187.36,187.33,16.0543708]
[1760850710763,102.1,187.39,187.33,16.0543708]
[1760850711079,3.34043426,187.37,187.34,0.7]
[1760850711777,4.02043426,187.38,187.34,16.7526527]
[1760850712183,4.02043426,187.38,187.34,0.7]
[1760850712367,4.02043426,187.38,187.35,16.0526527]
[1760850712969,4.02043426,187.38,187.34,0.7]
[1760850713167,4.02043426,187.38,187.34,16.7526527]
[1760850714383,3.34043426,187.37,187.34,16.7526527]
[1760850715780,4.02043426,187.37,187.34,16.7526527]
[1760850716485,3.34043426,187.37,187.34,16.7526527]
[1760850716984,3.34043426,187.37,187.34,16.0526527]
[1760850717177,3.34043426,187.37,187.35,0.7]
[1760850718482,3.34043426,187.37,187.34,16.0526527]
[1760850718786,4.02043426,187.37,187.34,16.0526527]
[1760850719865,4.02043426,187.37,187.34,16.7526527]
[1760850720188,3.34043426,187.37,187.35,0.7]
[1760850720970,3.34043426,187.37,187.34,16.0526527]
[1760850721486,3.34043426,187.37,187.35,0.7]
[1760850722894,4.02043426,187.37,187.34,16.0526527]
[1760850723192,3.34043426,187.37,187.34,16.7526527]
[1760850723593,4.02043426,187.37,187.34,16.7526527]
[1760850723764,3.34043426,187.35,187.34,16.0526527]
[1760850723970,3.34043426,187.35,187.32,0.7]
[1760850724279,3.34043426,187.35,187.33,16.7543708]
[1760850724871,3.34043426,187.35,187.31,23.58]
[1760850725091,3.34043426,187.35,187.32,16.7543708]
[1760850725589,3.34043426,187.35,187.32,0.7]
[1760850725794,3.34043426,187.34,187.33,16.7543708]
[1760850726176,3.34043426,187.34,187.33,16.0543708]
[1760850726381,3.34043426,187.34,187.31,28.21869869]
[1760850726582,0.68,187.36,187.33,16.0543708]
[1760850726583,3.34043426,187.35,187.33,16.0543708]
[1760850726775,3.34043426,187.35,187.33,0.7]
[1760850727499,3.34043426,187.35,187.32,16.7443708]
[1760850727788,3.34043426,187.35,187.32,16.0543708]
[1760850727993,3.34043426,187.35,187.33,0.69]
[1760850729392,3.34043426,187.35,187.32,16.7443708]
[1760850729890,3.34043426,187.35,187.32,16.0543708]
[1760850730096,3.34043426,187.35,187.33,0.69]
[1760850730392,3.34043426,187.35,187.32,16.7443708]
[1760850730780,3.34043426,187.34,187.32,16.7443708]
[1760850730986,3.34043426,187.33,187.3,0.69]
[1760850731174,3.34043426,187.32,187.3,0.69]
[1760850731379,3.34043426,187.31,187.3,16.05608927]
[1760850731586,3.34043426,187.31,187.3,22.88]
[1760850732290,3.34043426,187.31,187.29,16.74608927]
[1760850736002,3.34043426,187.31,187.29,0.69]
[1760850738090,4.06043426,187.31,187.28,16.0578081]
[1760850738292,4.06043426,187.31,187.28,16.7278081]
[1760850738493,3.34043426,187.3,187.28,16.7278081]
[1760850740093,3.34043426,187.3,187.25,8.68082996]
[1760850740094,3.34043426,187.3,187.27,0.67]
[1760850740394,3.34043426,187.3,187.27,16.72866766]
[1760850741002,3.34043426,187.28,187.27,16.05866766]
[1760850741315,26.22043426,187.28,187.23,0.87]
[1760850741490,3.34043426,187.25,187.23,0.87]
[1760850742283,3.34043426,187.25,187.23,0.2]
[1760850742484,3.34043426,187.25,187.24,0.67]
[1760850744810,3.34043426,187.27,187.24,0.67]
[1760850745111,3.34043426,187.28,187.24,0.67]
[1760850745613,3.34043426,187.27,187.24,0.67]
[1760850749509,3.34043426,187.27,187.25,0.67]
[1760850749811,3.34043426,187.26,187.25,0.67]
[1760850750912,3.34043426,187.27,187.25,0.67]
[1760850754495,3.34043426,187.27,187.23,5.5413061]
[1760850754496,4.06043426,187.26,187.23,5.5413061]
[1760850754721,3.34043426,187.25,187.23,0.2]
[1760850755425,3.34043426,187.25,187.23,0.87]
[1760850756324,3.34043426,187.26,187.23,0.87]
[1760850756530,4.06043426,187.24,187.23,0.2]
[1760850756703,26.94043426,187.24,187.23,0.2]
[1760850759121,14.93690947,187.24,187.23,0.2]
[1760850759327,37.81690947,187.24,187.23,0.2]
[1760850759997,14.93690947,187.24,187.23,0.2]
[1760850763620,22.88,187.21,187.15,0.2]
[1760850763827,3.34043426,187.16,187.15,0.2]
[1760850764624,3.34043426,187.16,187.15,0.92]
[1760850767132,3.34043426,187.16,187.15,0.2]
[1760850769629,3.34043426,187.16,187.15,0.92]
[1760850769924,3.34043426,187.16,187.15,0.2]
[1760850770307,102.1,187.18,187.15,0.2]
[1760850770512,3.34043426,187.16,187.15,0.92]
[1760850770925,3.34043426,187.17,187.15,0.92]
[1760850771134,3.34043426,187.16,187.15,0.92]
[1760850771309,3.34043426,187.16,187.15,0.2]
[1760850771707,26.91043426,187.16,187.15,0.2]
[1760850773924,37.78690947,187.16,187.15,0.2]
[1760850781333,105.04043426,187.14,187.13,0.2]
[1760850782939,105.04043426,187.14,187.13,0.92]
[1760850783133,105.04043426,187.14,187.13,0.2]
[1760850783635,105.04043426,187.14,187.13,0.92]
[1760850783817,105.04043426,187.14,187.13,0.2]
[1760850786544,116.60690947,187.14,187.13,0.2]
[1760850787140,14.21690947,187.14,187.13,0.2]
[1760850787720,14.90690947,187.14,187.13,0.2]
[1760850792939,18.24734373,187.14,187.13,0.2]
[1760850793142,10.87647521,187.13,187.12,0.2]
[1760850793343,17.55734373,187.13,187.11,0.2]
[1760850793541,18.25734373,187.12,187.11,0.2]
[1760850794641,41.13734373,187.12,187.11,0.2]
[1760850795544,33.75647521,187.12,187.11,0.2]
[1760850795746,37.09690947,187.12,187.11,0.2]
[1760850796843,14.21690947,187.12,187.11,0.2]
[1760850797743,10.87647521,187.12,187.11,0.2]
[1760850797949,3.34043426,187.12,187.11,0.85]
[1760850799333,3.34043426,187.12,187.11,0.2]
[1760850799534,3.34043426,187.12,187.11,0.85]
[1760850801362,3.34043426,187.12,187.11,0.2]
[1760850801530,3.34043426,187.12,187.11,0.85]
[1760850802223,4.49740644,187.23,187.11,9.5348335]
[1760850802426,3.34043426,187.21,187.15,3.34043426]
[1760850802626,3.34043426,187.21,187.16,0.65]
[1760850802840,26.22043426,187.21,187.16,0.65]
[1760850803038,26.22043426,187.21,187.16,3.99043426]
[1760850803247,26.22043426,187.21,187.17,0.65]
[1760850803751,22.88,187.21,187.17,0.65]
[1760850804053,3.34043426,187.22,187.17,0.65]
[1760850804544,22.88,187.21,187.17,0.65]
[1760850804723,26.22043426,187.21,187.17,0.65]
[1760850804925,3.34043426,187.2,187.17,0.65]
[1760850806550,3.34043426,187.2,187.14,3.34043426]
[1760850806730,3.34043426,187.18,187.15,0.65]
[1760850806932,3.34043426,187.18,187.15,3.99043426]
[1760850807153,3.34043426,187.18,187.16,0.65]
[1760850808849,3.34043426,187.17,187.11,3.54043426]
[1760850809050,3.34043426,187.16,187.12,16.72071112]
[1760850809257,3.34043426,187.16,187.13,0.65]
[1760850810555,102.1,187.2,187.13,0.65]
[1760850810736,3.34043426,187.19,187.13,3.99043426]
[1760850810936,3.34043426,187.19,187.14,0.65]
[1760850811441,3.34043426,187.18,187.14,0.65]
[1760850812740,102.1,187.2,187.14,0.65]
[1760850812941,105.44043426,187.2,187.15,3.34043426]
[1760850813254,105.44043426,187.2,187.16,0.65]
[1760850815861,105.44043426,187.2,187.17,0.65]
[1760850816255,3.34043426,187.19,187.17,0.65]
[1760850819059,102.1,187.2,187.17,0.65]
[1760850820040,102.1,187.2,187.17,7.86525637]
[1760850820235,102.1,187.2,187.18,0.65]
[1760850820441,105.44043426,187.2,187.18,0.65]
[1760850823966,102.1,187.2,187.18,0.65]
[1760850825459,105.44043426,187.2,187.18,0.65]
[1760850825675,105.44043426,187.2,187.16,7.21525637]
[1760850825962,105.44043426,187.2,187.17,0.7]
[1760850827361,105.44043426,187.2,187.18,0.7]
[1760850828467,105.44043426,187.2,187.16,7.21525637]
[1760850828649,106.11043426,187.2,187.17,0.7]
[1760850828839,3.34043426,187.19,187.16,7.21525637]
[1760850829044,4.01043426,187.19,187.16,7.21525637]
[1760850829445,3.34043426,187.19,187.16,7.91525637]
[1760850829755,4.01043426,187.19,187.16,0.7]
[1760850829959,3.34043426,187.18,187.13,5.34383072]
[1760850830161,0.67,187.19,187.15,16.06812886]
[1760850830162,3.34043426,187.17,187.15,16.06812886]
[1760850830377,3.34043426,187.17,187.14,0.7]
[1760850830669,3.34043426,187.17,187.15,0.7]
[1760850831640,3.34043426,187.18,187.15,0.7]
[1760850832252,102.1,187.2,187.16,0.7]
[1760850832453,3.34043426,187.19,187.16,0.7]
[1760850834769,3.34043426,187.19,187.14,16.06812886]
[1760850834972,4.01043426,187.19,187.15,0.7]
[1760850835266,3.34043426,187.18,187.15,0.7]
[1760850838678,3.34043426,187.18,187.16,0.7]
[1760850838852,3.34043426,187.19,187.16,0.7]
[1760850839476,102.1,187.2,187.15,3.34043426]
[1760850839676,102.1,187.2,187.17,0.7]
[1760850840180,102.1,187.2,187.15,3.34043426]
[1760850840358,102.1,187.2,187.18,0.7]
[1760850840677,102.1,187.2,187.19,0.7]
[1760850840980,102.1,187.2,187.17,4.57476501]
[1760850841273,102.1,187.2,187.17,3.87476501]
[1760850841470,102.1,187.2,187.18,0.7]
[1760850843369,102.1,187.2,187.17,4.57476501]
[1760850844665,106.11043426,187.2,187.17,4.57476501]
[1760850844984,4.01043426,187.19,187.15,0.7]
[1760850845277,4.01043426,187.19,187.16,5.34357283]
[1760850846457,0.67,187.19,187.16,5.34357283]
[1760850847254,4.01043426,187.19,187.16,5.34357283]
[1760850847459,4.01043426,187.19,187.15,0.7]
[1760850847757,4.01043426,187.19,187.15,16.76898952]
[1760850847984,0.66,187.18,187.13,3.34043426]
[1760850848161,4.00043426,187.17,187.13,0.67]
[1760850848486,3.34043426,187.17,187.14,0.67]
[1760850848659,3.34043426,187.18,187.14,0.67]
[1760850848859,4.00043426,187.18,187.14,0.67]
[1760850849068,4.00043426,187.18,187.14,16.73985028]
[1760850849984,4.00043426,187.18,187.14,16.06985028]
[1760850850278,4.00043426,187.18,187.15,0.67]
[1760850851270,6.94911511,187.19,187.15,0.67]
[1760850851478,6.94911511,187.19,187.16,0.67]
[1760850851679,106.10043426,187.2,187.16,0.67]
[1760850851976,106.10043426,187.2,187.14,19.41028454]
[1760850852178,102.1,187.19,187.15,0.67]
[1760850852565,102.1,187.19,187.16,0.67]
[1760850853993,102.1,187.19,187.14,19.41028454]
[1760850854180,102.1,187.19,187.15,0.66]
[1760850854181,105.44043426,187.19,187.15,0.66]
[1760850854481,106.10043426,187.19,187.16,0.66]
[1760850855365,106.10043426,187.19,187.14,0.66]
[1760850855577,106.10043426,187.19,187.13,3.34043426]
[1760850855772,106.10043426,187.19,187.15,0.66]
[1760850856088,0.66,187.18,187.15,0.66]
[1760850856486,0.66,187.18,187.13,19.41028454]
[1760850856676,7.60961571,187.18,187.13,0.66]
[1760850856873,4.00043426,187.17,187.13,0.66]
[1760850857276,4.00043426,187.17,187.14,0.66]
[1760850859289,3.34043426,187.17,187.14,0.66]
[1760850859477,4.00043426,187.18,187.14,0.66]
[1760850862484,0.66,187.18,187.13,19.41114538]
[1760850862691,0.66,187.18,187.15,0.66]
[1760850863470,102.1,187.19,187.16,0.66]
[1760850864184,102.1,187.19,187.15,3.34043426]
[1760850864185,102.1,187.19,187.17,0.66]
[1760850864698,102.1,187.19,187.18,0.66]
[1760850865888,102.1,187.19,187.17,0.66]
[1760850869195,102.1,187.19,187.18,0.66]
[1760850874284,102.1,187.19,187.17,0.66]
[1760850876200,0.66,187.21,187.18,0.66]
[1760850876406,3.34043426,187.22,187.18,0.66]
[1760850876595,4.00043426,187.22,187.18,0.66]
[1760850877304,4.00043426,187.22,187.17,20.06770255]
[1760850877506,0.66,187.21,187.17,16.72726829]
[1760850878081,3.34043426,187.22,187.17,16.72726829]
[1760850878399,4.00043426,187.22,187.18,0.66]
[1760850879405,102.1,187.23,187.19,0.66]
[1760850879809,102.1,187.23,187.2,0.66]
[1760850880003,102.76,187.23,187.2,0.66]
[1760850881713,102.76,187.23,187.19,0.66]
[1760850882707,102.1,187.23,187.2,0.66]
[1760850882910,102.76,187.23,187.2,0.66]
[1760850884613,102.1,187.22,187.2,0.66]
[1760850884991,102.1,187.22,187.19,0.67]
[1760850885712,102.82,187.22,187.19,0.67]
[1760850888212,106.16043426,187.22,187.16,5.87728346]
[1760850888418,0.72,187.21,187.17,16.06640781]
[1760850888614,0.72,187.21,187.17,16.73640781]
[1760850888998,0.72,187.21,187.17,16.06640781]
[1760850889207,105.44043426,187.22,187.18,0.67]
[1760850889404,106.16043426,187.22,187.18,0.67]
[1760850890013,0.72,187.21,187.18,0.67]
[1760850890526,0.72,187.21,187.19,16.06640781]
[1760850892506,105.44043426,187.22,187.19,16.06640781]
[1760850892703,106.16043426,187.22,187.19,16.06640781]
[1760850895812,3.34043426,187.21,187.19,16.06640781]
[1760850897920,106.16043426,187.22,187.19,16.06640781]
[1760850899931,4.06043426,187.21,187.19,16.06640781]
[1760850900232,0.72,187.2,187.19,16.06640781]
[1760850900430,4.06043426,187.2,187.19,16.06640781]
[1760850901218,4.06043426,187.2,187.13,0.67]
[1760850901440,4.06043426,187.2,187.12,5.34413875]
[1760850901441,3.34043426,187.18,187.14,0.67]
[1760850901636,3.34043426,187.18,187.16,16.06640781]
[1760850901936,4.06043426,187.18,187.16,16.06640781]
[1760850903224,0.72,187.17,187.16,16.06640781]
[1760850903430,4.06043426,187.17,187.16,16.06640781]
[1760850906438,3.34043426,187.17,187.16,16.06640781]
[1760850906939,4.06043426,187.18,187.16,16.06640781]
[1760850907139,3.34043426,187.18,187.16,16.06640781]
[1760850907317,102.1,187.19,187.16,16.73640781]
[1760850907519,3.34043426,187.18,187.16,16.73640781]
[1760850907828,3.34043426,187.18,187.16,0.67]
[1760850908124,3.34043426,187.18,187.17,16.06985028]
[1760850908521,3.99043426,187.18,187.17,16.06985028]
[1760850909118,3.99043426,187.18,187.14,0.71]
[1760850909313,3.34043426,187.17,187.15,16.77985028]
[1760850909725,3.34043426,187.17,187.15,0.71]
[1760850909935,3.34043426,187.17,187.16,16.07071112]
[1760850911441,3.99043426,187.17,187.16,16.07071112]
[1760850911849,3.99043426,187.17,187.12,0.71]
[1760850912033,3.34043426,187.14,187.13,16.07071112]
[1760850913028,3.99043426,187.14,187.13,16.07071112]
[1760850913426,3.34043426,187.14,187.13,16.07071112]
[1760850914549,4.06043426,187.14,187.11,0.9]
[1760850914745,0.72,187.14,187.12,16.07071112]
[1760850914925,3.34043426,187.13,187.12,16.07071112]
[1760850915127,3.34043426,187.13,187.12,16.77071112]
[1760850915838,3.34043426,187.14,187.12,16.77071112]
[1760850916046,3.34043426,187.15,187.13,0.7]
[1760850916431,3.34043426,187.15,187.14,16.07071112]
[1760850919753,3.34043426,187.15,187.12,0.7]
[1760850919952,102.82,187.16,187.13,16.07071112]
[1760850920160,3.34043426,187.14,187.13,16.07071112]
[1760850920752,4.06043426,187.14,187.13,16.07071112]
[1760850921758,3.34043426,187.14,187.13,16.07071112]
[1760850923346,102.82,187.15,187.13,16.07071112]
[1760850923531,3.34043426,187.14,187.13,16.07071112]
[1760850924343,105.44043426,187.15,187.13,16.77071112]
[1760850924542,105.44043426,187.15,187.14,0.7]
[1760850924738,102.1,187.15,187.14,0.7]
[1760850924959,102.1,187.15,187.14,16.77071112]
[1760850932462,102.1,187.15,187.14,16.07071112]
[1760850933268,105.44043426,187.15,187.14,16.07071112]
[1760850936765,102.1,187.15,187.14,16.77071112]
[1760850938049,102.1,187.2,187.14,25.45467347]
[1760850938251,102.1,187.2,187.18,3.34043426]
[1760850938462,102.1,187.2,187.19,0.7]
[1760850938769,102.1,187.2,187.19,16.76726829]
[1760850939070,102.1,187.2,187.19,16.06726829]
[1760850939254,102.1,187.2,187.19,16.76726829]
[1760850945080,102.1,187.2,187.19,20.10770255]
[1760850945256,102.1,187.25,187.19,20.10770255]
[1760850945454,102.1,187.24,187.2,0.66]
[1760850946174,106.16043426,187.24,187.21,16.06468714]
[1760850946679,3.34043426,187.23,187.21,16.06468714]
[1760850949378,3.34043426,187.23,187.21,16.72468714]
[1760850949875,3.34043426,187.23,187.21,0.66]
[1760850950084,3.34043426,187.23,187.22,16.06468714]
[1760850950253,105.44043426,187.24,187.22,16.72468714]
[1760850950454,102.1,187.24,187.22,0.66]
[1760850952072,102.1,187.24,187.21,0.66]
[1760850952273,102.1,187.24,187.22,0.66]
[1760850952697,102.1,187.24,187.2,3.34043426]
[1760850952870,102.1,187.24,187.23,0.66]
[1760850956461,102.1,187.24,187.21,5.34215618]
[1760850956784,102.1,187.24,187.22,0.66]
[1760850956983,105.44043426,187.24,187.22,0.66]
[1760850958075,102.1,187.24,187.22,0.66]
[1760850959767,102.1,187.24,187.23,0.66]
[1760850961381,102.1,187.24,187.21,9.34224656]
[1760850961581,102.1,187.24,187.22,0.66]
[1760850963164,102.1,187.24,187.23,0.66]
[1760850963365,102.1,187.24,187.21,8.68224656]
[1760850963567,102.1,187.24,187.22,4.00043426]
[1760850963772,102.1,187.24,187.23,4.00043426]
[1760850964164,102.1,187.28,187.23,4.00043426]
[1760850964480,102.1,187.28,187.24,4.53450817]
[1760850964670,102.1,187.28,187.25,4.00043426]
[1760850964871,102.1,187.28,187.26,0.66]
[1760850965071,102.1,187.28,187.27,0.66]
[1760850965272,102.1,187.28,187.25,16.72038705]
[1760850966588,102.1,187.28,187.25,0.66]
[1760850967092,102.1,187.28,187.26,0.66]
[1760850967590,102.1,187.28,187.27,0.71]
[1760850967767,102.1,187.28,187.27,6.05039731]
[1760850968471,102.1,187.28,187.27,5.34039731]
[1760850968994,102.1,187.28,187.27,6.05039731]
[1760850969190,0.1,187.33,187.27,6.05039731]
[1760850969191,102.1,187.32,187.27,14.73069084]
[1760850969385,102.1,187.32,187.28,4.5843941]
[1760850969693,102.1,187.32,187.29,0.71]
[1760850969891,102.1,187.32,187.3,0.71]
[1760850970405,0.1,187.33,187.31,4.05043426]
[1760850970693,0.1,187.33,187.31,14.0611305]
[1760850970891,0.1,187.33,187.31,13.3511305]
[1760850971092,0.1,187.33,187.31,18.68985205]
[1760850971590,0.1,187.33,187.32,0.71]
[1760850972477,0.1,187.33,187.32,6.04845825]
[1760850972993,0.1,187.33,187.32,9.38889251]
[1760850973385,0.1,187.33,187.32,9.92273833]
[1760850974895,0.1,187.33,187.32,20.79921354]
[1760850978092,0.1,187.33,187.32,17.45877928]
[1760850978306,0.1,187.33,187.32,20.79921354]
[1760850978511,1e-08,187.33,187.32,20.79921354]
[1760850978797,0.1,187.38,187.36,33.75647521]
[1760850978976,0.1,187.38,187.37,14.75061283]
[1760850979180,0.1,187.38,187.37,12.09017857]
[1760850979403,0.1,187.38,187.37,29.57346105]
[1760850979586,0.1,187.38,187.37,31.57006046]
[1760850979909,0.1,187.38,187.37,34.91049472]
[1760850980896,0.1,187.38,187.37,45.78696993]
[1760850981076,0.1,187.38,187.37,22.90696993]